fUSD/lending_fUSD_20240825
["ID","MTS","AMOUNT","RATE_DAILY","PERIOD"]
[335868219,1724555444481,-162.63,0.000108,2]
[335868220,1724555444491,-150.44,0.000108,2]
[335868221,1724555444500,-1580.82,0.000108,2]
[335868222,1724555444510,-1062.68,0.000108,2]
[335868223,1724555444519,-150.0,0.000108,2]
[335868224,1724555444536,-531.62,0.000108,2]
[335868225,1724555444545,-426.91,0.000108,2]
[335868226,1724555444555,-150.0,0.000108,2]
[335868227,1724555444564,-356.98,0.000108,2]
[335868228,1724555444574,-188.632966,0.00010826,2]
[335868229,1724555444583,-3502.71679487,0.0001086,2]
[335868230,1724555444593,-724.02453146,0.00010861,2]
[335868231,1724555444603,-1299.26485006,0.0001089,2]
[335868232,1724555444612,-313.2013898,0.000109,2]
[335868233,1724555444622,-531.62,0.000109,2]
[335868234,1724555444631,-712.97,0.000109,2]
[335868235,1724555444641,-426.91,0.000109,2]
[335868236,1724555444651,-156.0,0.000109,2]
[335868237,1724555444661,-150.0,0.000109,2]
[335868238,1724555444671,-356.95,0.000109,2]
[335868239,1724555444680,-531.62,0.000109,2]
[335868240,1724555444690,-150.0,0.000109,2]
[335868241,1724555444699,-356.98,0.000109,2]
[335868242,1724555444708,-531.62,0.000109,2]
[335868243,1724555444718,-329.37,0.000109,2]
[335868244,1724555444727,-150.0,0.000109,2]
[335868245,1724555444736,-356.98,0.000109,2]
[335868246,1724555444745,-356.98,0.000109,2]
[335868247,1724555444755,-150.0,0.000109,2]
[335868248,1724555444765,-713.66,0.000109,2]
[335868249,1724555444776,-790.9,0.000109,2]
[335868250,1724555444787,-426.91,0.000109,2]
[335868251,1724555444796,-531.62,0.000109,2]
[335868252,1724555444806,-150.0,0.000109,2]
[335868253,1724555444815,-150.0,0.000109,2]
[335868254,1724555444825,-531.62,0.000109,2]
[335868255,1724555444834,-150.0,0.000109,2]
[335868256,1724555444843,-426.91,0.000109,2]
[335868257,1724555444853,-150.0,0.000109,2]
[335868258,1724555444862,-7032.33582052,0.000109,2]
[335868259,1724555444872,-9051.97521303,0.00010911,2]
[335868260,1724555444882,-184.51,0.00010959,2]
[335868261,1724555444892,-157.07,0.00010959,2]
[335868262,1724555444902,-159.38,0.00010959,2]
[335868263,1724555444912,-250.0,0.00010959,2]
[335868264,1724555444923,-169.94,0.00010959,2]
[335868265,1724555444932,-410.4449954,0.00010979,2]
[335868266,1724555444941,-155.0,0.00010979,2]
[335868267,1724555444951,-150.0,0.00010998,2]
[335868268,1724555444961,-150.153,0.00010998,2]
[335868269,1724555444970,-1257.078,0.00010998,2]
[335868270,1724555444979,-1923.0,0.00010998,2]
[335868271,1724555444990,-622.577,0.00010998,2]
[335868272,1724555445003,-567.176,0.00010998,2]
[335868273,1724555445013,-1136.8593786,0.00010998,2]
[335868274,1724555445025,-2744.0138061,0.00010998,2]
[335868275,1724555445040,-11287.3894745,0.00010998,2]
[335868276,1724555445049,-608.75752632,0.00010999,2]
[335868277,1724555445059,-314.802201,0.00010999,2]
[335868278,1724555445069,-172.900637,0.00010999,2]
[335868279,1724555445078,-302.418541,0.00010999,2]
[335868280,1724555445087,-500.0,0.00010999,2]
[335868281,1724555445096,-500.0,0.00010999,2]
[335868282,1724555445106,-500.0,0.00010999,2]
[335868283,1724555445115,-500.0,0.00010999,2]
[335868284,1724555445124,-500.0,0.00010999,2]
[335868285,1724555445134,-500.0,0.00010999,2]
[335868286,1724555445143,-500.0,0.00010999,2]
[335868287,1724555445153,-500.0,0.00010999,2]
[335868288,1724555445163,-500.0,0.00010999,2]
[335868289,1724555445172,-500.0,0.00010999,2]
[335868290,1724555445324,-500.0,0.00010999,2]
[335868291,1724555445334,-500.0,0.00010999,2]
[335868292,1724555445345,-500.0,0.00010999,2]
[335868293,1724555445355,-500.0,0.00010999,2]
[335868294,1724555445364,-394.81935876,0.00010999,2]
[335868295,1724555445374,-568.56,0.00010999,2]
[335868296,1724555445383,-500.0,0.00010999,2]
[335868297,1724555445393,-487.83462973,0.00010999,2]
[335868298,1724555445402,-588.84674564,0.00010999,2]
[335868299,1724555445414,-500.0,0.00010999,2]
[335868300,1724555445423,-500.0,0.00010999,2]
[335868301,1724555445433,-500.0,0.00010999,2]
[335868302,1724555445444,-644.16,0.00010999,2]
[335868303,1724555445454,-500.0,0.00010999,2]
[335868304,1724555445463,-895.68435722,0.00010999,2]
[335868305,1724555445472,-18279.14090274,0.00011,2]
[335868306,1724555445482,-20000.0,0.00011,2]
[335868307,1724555445492,-51248.9625075,0.00011,2]
[335868308,1724555445502,-144946.36061155,0.00011,2]
[335868309,1724555446501,-220.49036245,0.00010699,2]
[335868310,1724555446512,-65.07629732,0.00011,2]
[335868311,1724555446726,-608.35712949,0.00011,2]
[335868312,1724555446737,-1143.40519,0.00011,2]
[335868313,1724555446748,-1143.40519,0.00011,2]
[335868317,1724555652638,1050.0,0.0001,2]
[335868321,1724556039367,291.73,8.219e-05,2]
[335868324,1724556214120,1000.0,0.0001,2]
[335868326,1724556247350,293.85215865,9.962e-05,2]
[335868327,1724556254869,1000.0,0.00027,120]
[335868328,1724556255017,809.0,0.00027,120]
[335868331,1724556304103,6916.87959881,0.00010009,2]
[335868337,1724556366857,1710.12,9.991e-05,2]
[335868338,1724556370781,200.0,9.991e-05,2]
[335868339,1724556381309,1301.82,9.981e-05,2]
[335868342,1724556474641,306.88,9.948e-05,2]
[335868343,1724556476512,500.0,0.00027,120]
[335868344,1724556476664,3879.82904589,0.00010009,2]
[335868345,1724556495636,6209.26,9.931e-05,2]
[335868350,1724556505359,251.38,9.961e-05,2]
[335868361,1724556592469,293.23,8.219e-05,2]
[335868364,1724556609511,3795.6233293,0.00010009,2]
[335868365,1724556615233,1094.48555958,0.00010009,2]
[335868367,1724556631703,-295.44814184,0.00010026,2]
[335868371,1724556631716,-365.06759219,0.00010026,2]
[335868374,1724556631727,-568.76126533,0.00010026,2]
[335868378,1724556631737,-314.05879671,0.00010026,2]
[335868404,1724556631837,-748.23712294,0.00010026,2]
[335868408,1724556631849,-587.64466431,0.00010026,2]
[335868411,1724556631858,-380.9710836,0.00010026,2]
[335868427,1724556637670,-272.55098046,0.00010026,2]
[335868429,1724556637681,-161.32,0.00010051,2]
[335868430,1724556637691,-300.0,0.00010075,2]
[335868432,1724556637700,-300.0,0.00010075,2]
[335868433,1724556637710,-800.0,0.00010076,2]
[335868434,1724556637719,-228.52699082,0.00010097,2]
[335868435,1724556637729,-358.10515509,0.00010097,2]
[335868436,1724556637739,-274.53970638,0.00010097,2]
[335868437,1724556637750,-629.05909233,0.00010097,2]
[335868438,1724556637760,-298.59101924,0.00010097,2]
[335868439,1724556637772,-486.27391556,0.00010097,2]
[335868440,1724556637782,-433.20023883,0.00010471,2]
[335868441,1724556637791,-155.94636436,0.00010471,2]
[335868442,1724556637801,-284.45743818,0.00010471,2]
[335868443,1724556637811,-293.23,0.00010476,2]
[335868444,1724556637820,-758.53395694,0.00010699,2]
[335868445,1724556637830,-150.0,0.000108,2]
[335868446,1724556637839,-499.99,0.00010861,2]
[335868447,1724556637849,-219.05448022,0.00010861,2]
[335868448,1724556637859,-150.0,0.00010878,2]
[335868449,1724556637868,-516.13059219,0.00010899,2]
[335868450,1724556637878,-359.57,0.000109,2]
[335868451,1724556637887,-959.09121875,0.000109,2]
[335868452,1724556637897,-356.98,0.000109,2]
[335868453,1724556637906,-250.0,0.00010959,2]
[335868454,1724556637915,-155.0,0.00010979,2]
[335868455,1724556637924,-150.0,0.00010988,2]
[335868456,1724556637934,-550.89,0.00010989,2]
[335868457,1724556637943,-1376.67605604,0.00010999,3]
[335868458,1724556637952,-500.0,0.00010999,2]
[335868459,1724556637961,-500.0,0.00010999,2]
[335868460,1724556637971,-500.0,0.00010999,2]
[335868461,1724556637980,-500.0,0.00010999,2]
[335868462,1724556637989,-500.0,0.00010999,2]
[335868463,1724556637998,-500.0,0.00010999,2]
[335868464,1724556638007,-500.0,0.00010999,2]
[335868465,1724556638017,-500.0,0.00010999,2]
[335868466,1724556638026,-500.0,0.00010999,2]
[335868467,1724556638035,-500.0,0.00010999,2]
[335868468,1724556638044,-500.0,0.00010999,2]
[335868469,1724556638053,-500.0,0.00010999,2]
[335868470,1724556638062,-500.0,0.00010999,2]
[335868471,1724556638072,-428.89217876,0.00010999,2]
[335868472,1724556638083,-500.0,0.00010999,2]
[335868473,1724556638093,-500.0,0.00010999,2]
[335868474,1724556638103,-623.18302892,0.00010999,2]
[335868475,1724556638113,-500.0,0.00010999,2]
[335868476,1724556638122,-500.0,0.00010999,2]
[335868477,1724556638131,-500.0,0.00010999,2]
[335868478,1724556638142,-500.0,0.00010999,2]
[335868479,1724556638151,-500.0,0.00010999,2]
[335868480,1724556638161,-500.0,0.00010999,2]
[335868481,1724556638179,-500.0,0.00010999,2]
[335868482,1724556638188,-500.0,0.00010999,2]
[335868483,1724556638198,-500.0,0.00010999,2]
[335868484,1724556638207,-70.97953637,0.00010999,2]
[335868485,1724556638379,-429.02046363,0.00010999,2]
[335868486,1724556638388,-500.0,0.00010999,2]
[335868487,1724556638399,-253.05,0.00010999,2]
[335868488,1724556638408,-500.0,0.00010999,2]
[335868489,1724556638417,-500.0,0.00010999,2]
[335868490,1724556638427,-521.95401307,0.00010999,2]
[335868491,1724556638436,-500.0,0.00010999,2]
[335868492,1724556638445,-500.0,0.00010999,2]
[335868493,1724556638455,-500.0,0.00010999,2]
[335868494,1724556638464,-500.0,0.00010999,2]
[335868495,1724556638473,-500.0,0.00010999,2]
[335868496,1724556638482,-500.0,0.00010999,2]
[335868497,1724556638492,-500.0,0.00010999,2]
[335868498,1724556638501,-500.0,0.00010999,2]
[335868499,1724556638510,-500.0,0.00010999,2]
[335868500,1724556638519,-500.0,0.00010999,2]
[335868501,1724556638527,-500.0,0.00010999,2]
[335868502,1724556638537,-500.0,0.00010999,2]
[335868503,1724556638546,-500.0,0.00010999,2]
[335868504,1724556638555,-500.0,0.00010999,2]
[335868505,1724556638564,-500.0,0.00010999,2]
[335868506,1724556638574,-500.0,0.00010999,2]
[335868507,1724556638583,-502.55,0.00010999,2]
[335868508,1724556638592,-500.0,0.00010999,2]
[335868509,1724556638601,-500.0,0.00010999,2]
[335868510,1724556638610,-500.0,0.00010999,2]
[335868511,1724556638619,-581.91809574,0.00010999,2]
[335868512,1724556638628,-500.0,0.00010999,2]
[335868513,1724556638637,-158.6329,0.00010999,2]
[335868514,1724556638647,-500.0,0.00010999,2]
[335868515,1724556638657,-569.05213346,0.00010999,2]
[335868516,1724556638668,-500.0,0.00010999,2]
[335868517,1724556638677,-500.0,0.00010999,2]
[335868518,1724556638688,-500.0,0.00010999,2]
[335868519,1724556638697,-500.0,0.00010999,2]
[335868520,1724556638706,-500.0,0.00010999,2]
[335868521,1724556638716,-500.0,0.00010999,2]
[335868522,1724556638725,-500.0,0.00010999,2]
[335868523,1724556638735,-500.0,0.00010999,2]
[335868524,1724556638744,-500.0,0.00010999,2]
[335868525,1724556638753,-500.0,0.00010999,2]
[335868526,1724556638764,-500.0,0.00010999,2]
[335868527,1724556638773,-500.0,0.00010999,2]
[335868528,1724556638782,-500.0,0.00010999,2]
[335868529,1724556638791,-500.0,0.00010999,2]
[335868530,1724556638801,-500.0,0.00010999,2]
[335868531,1724556638810,-500.0,0.00010999,2]
[335868532,1724556638820,-500.0,0.00010999,2]
[335868533,1724556638829,-500.0,0.00010999,2]
[335868534,1724556638841,-500.0,0.00010999,2]
[335868535,1724556638851,-500.0,0.00010999,2]
[335868536,1724556638860,-482.34675261,0.00010999,2]
[335868537,1724556638886,-75.55324739,0.00010999,2]
[335868538,1724556638896,-500.0,0.00010999,2]
[335868539,1724556638906,-500.0,0.00010999,2]
[335868540,1724556638915,-500.0,0.00010999,2]
[335868541,1724556638926,-500.0,0.00010999,2]
[335868542,1724556638935,-500.0,0.00010999,2]
[335868543,1724556638945,-500.0,0.00010999,2]
[335868544,1724556638954,-500.0,0.00010999,2]
[335868545,1724556638964,-157.96589449,0.00010999,2]
[335868546,1724556638976,-342.03410551,0.00010999,2]
[335868547,1724556638985,-500.0,0.00010999,2]
[335868548,1724556638994,-636.25007959,0.00010999,2]
[335868549,1724556639003,-500.0,0.00010999,2]
[335868550,1724556639012,-500.0,0.00010999,2]
[335868551,1724556639022,-500.0,0.00010999,2]
[335868552,1724556639031,-500.0,0.00010999,2]
[335868553,1724556639041,-582.4867506,0.00010999,2]
[335868554,1724556639050,-500.0,0.00010999,2]
[335868555,1724556639060,-500.0,0.00010999,2]
[335868556,1724556639069,-500.0,0.00010999,2]
[335868557,1724556639079,-500.0,0.00010999,2]
[335868558,1724556639089,-543.13316786,0.00010999,2]
[335868559,1724556639098,-500.0,0.00010999,2]
[335868560,1724556639108,-500.0,0.00010999,2]
[335868561,1724556639117,-500.0,0.00010999,2]
[335868562,1724556639126,-500.0,0.00010999,2]
[335868563,1724556639136,-500.0,0.00010999,2]
[335868564,1724556639146,-500.0,0.00010999,2]
[335868565,1724556639155,-500.0,0.00010999,2]
[335868566,1724556639167,-500.0,0.00010999,2]
[335868567,1724556639177,-510.08585307,0.00010999,2]
[335868568,1724556639186,-505.8637216,0.00010999,2]
[335868569,1724556639196,-500.0,0.00010999,2]
[335868570,1724556639206,-500.0,0.00010999,2]
[335868571,1724556639216,-500.0,0.00010999,2]
[335868572,1724556639226,-500.0,0.00010999,2]
[335868573,1724556639236,-500.0,0.00010999,2]
[335868574,1724556639245,-500.0,0.00010999,2]
[335868575,1724556639255,-500.0,0.00010999,2]
[335868576,1724556639265,-500.0,0.00010999,2]
[335868577,1724556639275,-405.57762463,0.00010999,2]
[335868578,1724556639284,-500.0,0.00010999,2]
[335868579,1724556639294,-500.0,0.00010999,2]
[335868580,1724556639303,-500.0,0.00010999,2]
[335868581,1724556639313,-521.95,0.00010999,2]
[335868582,1724556639326,-500.0,0.00010999,2]
[335868583,1724556639335,-500.0,0.00010999,2]
[335868584,1724556639345,-500.0,0.00010999,2]
[335868585,1724556639354,-500.0,0.00010999,2]
[335868586,1724556639363,-519.39389054,0.00010999,2]
[335868587,1724556639373,-500.0,0.00010999,2]
[335868588,1724556639382,-500.0,0.00010999,2]
[335868589,1724556639392,-500.0,0.00010999,2]
[335868590,1724556639402,-500.0,0.00010999,2]
[335868591,1724556639413,-516.38435146,0.00010999,2]
[335868592,1724556639423,-500.0,0.00010999,2]
[335868593,1724556639432,-500.0,0.00010999,2]
[335868594,1724556639441,-1000.0,0.00011,2]
[335868595,1724556639451,-1000.0,0.00011,2]
[335868596,1724556639461,-1000.0,0.00011,2]
[335868597,1724556639470,-1000.0,0.00011,2]
[335868598,1724556639480,-1000.0,0.00011,2]
[335868599,1724556639490,-1000.0,0.00011,2]
[335868600,1724556639499,-1000.0,0.00011,2]
[335868601,1724556639510,-1000.0,0.00011,2]
[335868602,1724556639520,-1000.0,0.00011,2]
[335868603,1724556639530,-1000.0,0.00011,2]
[335868604,1724556639540,-1000.0,0.00011,2]
[335868605,1724556639550,-1000.0,0.00011,2]
[335868606,1724556639560,-1000.0,0.00011,2]
[335868607,1724556639570,-1000.0,0.00011,2]
[335868608,1724556639579,-1000.0,0.00011,2]
[335868609,1724556639589,-9139.57045137,0.00011,2]
[335868610,1724556639599,-49943.21165786,0.00011,2]
[335868612,1724556639855,-1276.21844793,0.00010979,2]
[335868613,1724556639865,-500.0,0.00010999,2]
[335868614,1724556639875,-500.0,0.00010999,2]
[335868615,1724556639885,-500.0,0.00010999,2]
[335868616,1724556639894,-500.0,0.00010999,2]
[335868617,1724556639904,-449.65,0.00010999,2]
[335868618,1724556639914,-4.59687428,0.00011,2]
[335868619,1724556640022,-204.1551957,0.00010026,2]
[335868620,1724556640032,-1012.00324118,0.00011,2]
[335868621,1724556640046,-340.15000015,0.00011,2]
[335868622,1724556640147,-1424.0,0.00011,2]
[335868623,1724556640160,-276.91061512,0.00011,2]
[335868624,1724556640172,-1819.20996264,0.00011,2]
[335868625,1724556640184,-1003.50055156,0.00011,2]
[335868626,1724556640197,-500.0,0.00011,2]
[335868627,1724556640268,-7971.90000001,0.00011,2]
[335868628,1724556640280,-4564.99427688,0.00011,2]
[335868629,1724556640291,-419.77238971,0.00011,2]
[335868630,1724556640303,-1656.58520388,0.00011,2]
[335868631,1724556640314,-7810.90522579,0.00011,2]
[335868632,1724556640388,-9436.40227701,0.00011,2]
[335868633,1724556640402,-548.10622179,0.00011,2]
[335868634,1724556640421,-495.98082769,0.00011,2]
[335868642,1724556642904,-1385.42433584,0.00011,2]
[335868643,1724556642916,-1314.57999987,0.00011,2]
[335868648,1724556645716,-276.345,0.00011,2]
[335868649,1724556645727,-573.27155235,0.00011,2]
[335868650,1724556645851,-1058.70623904,0.00011,2]
[335868651,1724556645864,-1367.99179144,0.00011,2]
[335868652,1724556645876,-580.59172386,0.00011,2]
[335868663,1724556676667,1367.0825,9.997e-05,2]
[335868664,1724556739110,443.78,0.0001,2]
[335868665,1724556804173,209.13,0.0001,2]
[335868666,1724556955401,1000.0,0.00027,120]
[335868667,1724556999240,279.11,0.0001,2]
[335868668,1724557064959,500.0,0.0001,2]
[335868669,1724557065845,500.0,0.0001,2]
[335868670,1724557301025,297.0,8.219e-05,2]
[335868671,1724557372742,489.33508898,9.962e-05,2]
[335868672,1724557384999,161.32,9.977e-05,2]
[335868673,1724557408523,-251.38,0.00010051,2]
[335868674,1724557408547,-3260.04,0.00010122,2]
[335868675,1724557408571,-270.94,0.00010138,2]
[335868676,1724557408595,-297.0,0.00010476,2]
[335868677,1724557408618,-10372.64,0.00010505,2]
[335868678,1724557456015,1050.0,0.0001,2]
[335868679,1724557491914,-3879.82904589,0.00010471,2]
[335868680,1724557491937,-300.0,0.00010504,2]
[335868681,1724557491959,-155.0,0.00010505,2]
[335868682,1724557491980,-155.32694516,0.00010566,2]
[335868683,1724557492001,-509.84400895,0.00010699,2]
[335868684,1724557504730,-300.0,0.00010698,2]
[335868685,1724557504751,-4700.0,0.00010699,2]
[335868686,1724557516506,-5000.0,0.00010699,2]
[335868687,1724557528199,-2400.0,0.00010699,2]
[335868690,1724557763258,231.59913267,0.00010009,2]
[335868691,1724557775452,3205.91352612,0.00010009,2]
[335868695,1724557786759,1000.0,9.967e-05,2]
[335868696,1724557794403,3944.21434876,0.00010009,2]
[335868713,1724557831738,-1990.94965919,0.00010026,2]
[335868715,1724557831748,-654.121857,0.00010026,2]
[335868717,1724557831757,-1276.69480859,0.00010026,2]
[335868719,1724557831766,-879.35374974,0.00010026,2]
[335868720,1724557831775,-300.0,0.00010096,2]
[335868721,1724557831784,-23728.92891169,0.00010097,2]
[335868722,1724557831793,-219.05448022,0.00010097,2]
[335868724,1724557831803,-257.07440859,0.00010097,2]
[335868726,1724557831812,-329.57850842,0.00010471,2]
[335868728,1724557831822,-485.95604284,0.00010471,2]
[335868730,1724557831831,-270.75661,0.00010505,2]
[335868731,1724557831841,-464.97255827,0.00010566,2]
[335868732,1724557831850,-155.0,0.00010566,2]
[335868733,1724557831860,-156.02339283,0.00010699,2]
[335868734,1724557831869,-150.0,0.00010799,2]
[335868735,1724557831879,-150.0,0.000108,2]
[335868736,1724557831889,-403.24983538,0.000108,2]
[335868737,1724557831898,-499.99,0.00010861,2]
[335868738,1724557831908,-1258.9888425,0.00010861,2]
[335868739,1724557831917,-629.05909233,0.00010862,2]
[335868740,1724557831927,-533.50461837,0.0001089,2]
[335868741,1724557831937,-348.05356129,0.0001089,2]
[335868742,1724557831946,-367.7216,0.00010899,2]
[335868743,1724557831957,-266.6719,0.000109,2]
[335868744,1724557831967,-471.6136,0.000109,2]
[335868745,1724557831976,-150.0,0.000109,2]
[335868746,1724557831988,-356.95,0.000109,2]
[335868747,1724557831997,-865.27141,0.0001094,2]
[335868748,1724557832006,-182.81,0.00010959,2]
[335868749,1724557832015,-157.07,0.00010959,2]
[335868750,1724557832024,-250.0,0.00010959,2]
[335868751,1724557832034,-234.0,0.0001099,2]
[335868752,1724557832043,-122235.67794573,0.0001099,2]
[335868753,1724557832055,-331.18276499,0.0001099,2]
[335868754,1724557832068,-12956.23460994,0.0001099,2]
[335868755,1724557832081,-6293.3868284,0.0001099,2]
[335868756,1724557832093,-544.57707993,0.0001099,2]
[335868757,1724557832104,-418.54007673,0.0001099,2]
[335868758,1724557832115,-837.82808505,0.0001099,2]
[335868761,1724557832134,-811.05669613,0.0001099,2]
[335868765,1724557837792,-163.1917288,0.00010097,2]
[335868766,1724557837801,-528.0832712,0.0001099,2]
[335868767,1724557838127,-997.33378802,0.0001099,2]
[335868773,1724557840160,-288.58826032,0.0001099,2]
[335868774,1724557840257,-38.132736,0.0001099,2]
[335868842,1724557959670,299.62,8.31e-05,2]
[335868845,1724558134540,155.37539278,0.00010009,2]
[335868846,1724558145412,155.75874206,0.00010009,2]
[335868852,1724558465621,300.42,8.219e-05,2]
[335868853,1724558528117,349.08709593,9.962e-05,2]
[335868883,1724558979849,300.39,8.219e-05,2]
[335868889,1724559006431,807.72373681,0.0001,2]
[335868895,1724559012591,164.71703924,9.962e-05,2]
[335868899,1724559024699,203.42899612,9.962e-05,2]
[335868904,1724559032038,-1000.0,0.00010013,2]
[335868905,1724559032047,-786.909149,0.00010026,2]
[335868906,1724559032144,-1193.2094491,0.00010026,2]
[335868907,1724559032157,-2074.01028306,0.00010026,2]
[335868908,1724559032200,-264.05668947,0.00010026,2]
[335868909,1724559032307,-1095.79279664,0.00010026,2]
[335868910,1724559032318,-155.0,0.00010026,2]
[335868911,1724559032327,-216.75,0.00010037,2]
[335868912,1724559032338,-155.2635198,0.00010097,2]
[335868913,1724559032347,-216.14,0.00010146,2]
[335868914,1724559032356,-300.39,0.00010474,2]
[335868915,1724559032365,-744.89042488,0.00010505,2]
[335868916,1724559032376,-742.6822374,0.00010505,2]
[335868917,1724559032385,-1576.35014912,0.00010566,2]
[335868918,1724559032394,-300.0,0.00010698,2]
[335868919,1724559032403,-1276.69480859,0.00010699,2]
[335868920,1724559032413,-5442.42205919,0.00010699,2]
[335868921,1724559032421,-445.97916288,0.00010713,2]
[335868922,1724559034593,367.15665859,9.962e-05,2]
[335868926,1724559038050,-822.23409465,0.00010713,2]
[335868927,1724559038060,-527.37825996,0.000108,2]
[335868928,1724559038073,-276.85135587,0.000108,2]
[335868929,1724559038082,-167.86,0.000108,2]
[335868930,1724559038094,-124.21581622,0.000108,2]
[335868931,1724559038261,-176.61418378,0.000108,2]
[335868932,1724559038271,-716.02,0.000108,2]
[335868933,1724559038280,-356.95,0.000108,2]
[335868934,1724559038290,-499.99,0.00010852,2]
[335868935,1724559038299,-1286.10280632,0.00010852,2]
[335868936,1724559038308,-223.49375271,0.00010852,2]
[335868937,1724559038318,-186.52035697,0.00010862,2]
[335868938,1724559038327,-546.86776024,0.00010894,2]
[335868939,1724559038339,-1140.87323976,0.00010894,2]
[335868940,1724559038348,-396.626,0.00010894,2]
[335868941,1724559038357,-5898.948,0.00010894,2]
[335868942,1724559038367,-1215.489,0.00010894,2]
[335868944,1724559038376,-150.0,0.00010899,2]
[335868946,1724559038385,-1195.71,0.000109,2]
[335868948,1724559038394,-856.5,0.000109,2]
[335868950,1724559038404,-268.06,0.000109,2]
[335868952,1724559038413,-356.95,0.000109,2]
[335868954,1724559038422,-300.98,0.000109,2]
[335868956,1724559038430,-356.95,0.000109,2]
[335868958,1724559038439,-257.60984249,0.000109,2]
[335868960,1724559038448,-257.60984248,0.000109,2]
[335868962,1724559038457,-257.60984248,0.000109,2]
[335868964,1724559038467,-257.60984248,0.000109,2]
[335868966,1724559038475,-257.60984248,0.000109,2]
[335868968,1724559038484,-257.60984248,0.000109,2]
[335868970,1724559038494,-257.60984248,0.000109,2]
[335868972,1724559038503,-257.60984248,0.000109,2]
[335868973,1724559038513,-738.67766229,0.000109,2]
[335868975,1724559038522,-314.8269567,0.00010949,2]
[335868977,1724559038531,-159.38,0.00010959,2]
[335868979,1724559038540,-500.0,0.00010959,2]
[335868981,1724559038549,-500.0,0.00010959,2]
[335868983,1724559038558,-500.0,0.00010959,2]
[335868985,1724559038567,-500.0,0.00010959,2]
[335868987,1724559038576,-500.0,0.00010959,2]
[335868989,1724559038586,-500.0,0.00010959,2]
[335868991,1724559038595,-250.0,0.00010959,2]
[335868993,1724559038604,-169.94,0.00010959,2]
[335868995,1724559038613,-500.0,0.00010989,2]
[335868996,1724559038622,-186.27248102,0.00010989,2]
[335868998,1724559038632,-65947.35797906,0.0001099,2]
[335869000,1724559038641,-2196.84329077,0.0001099,2]
[335869002,1724559038650,-873.83729,0.0001099,2]
[335869004,1724559038659,-239.1387591,0.00010997,2]
[335869006,1724559038668,-5462.2692813,0.00010997,2]
[335869008,1724559038678,-201.8615518,0.00010997,2]
[335869010,1724559038687,-317.68083049,0.00010997,2]
[335869012,1724559038696,-378.27892733,0.00010997,2]
[335869014,1724559038706,-1001.5190476,0.00010997,2]
[335869016,1724559038715,-513.9145634,0.00010997,2]
[335869018,1724559038724,-150.0,0.00010998,2]
[335869020,1724559038733,-249.834,0.00010998,2]
[335869022,1724559038742,-609.766,0.00010998,2]
[335869024,1724559038751,-500.0,0.00010998,2]
[335869026,1724559038761,-500.0,0.00010998,2]
[335869028,1724559038770,-500.0,0.00010998,2]
[335869030,1724559038780,-500.0,0.00010998,2]
[335869031,1724559038789,-500.0,0.00010998,2]
[335869032,1724559038798,-428.58647409,0.00010998,2]
[335869033,1724559040145,-71.41352591,0.00010998,2]
[335869034,1724559040154,-500.0,0.00010998,2]